[Event "Titled Tuesday Blitz February 28 Late 2023"]
[White "Bouget, Alexandre"]
[Black "olga-belka"]
[WhiteFideId "681318"]
[WhiteElo "2177"]
[BlackElo "2206"]
[Result "1-0"]
[Round "07"]
[TimeControl "180+2"]
[Date "2023.02.28"]
[WhiteClock "0:00:01"]
[BlackClock "0:00:01"]

1. Nc3 {[%clk 0:02:39]}  d5 {[%clk 0:02:57]} 2. e4 {[%clk 0:02:39]}  dxe4 {[%clk 0:02:55]} 3. Nxe4 {[%clk 0:02:39]}  g6 {[%clk 0:02:54]} 4. d4 {[%clk 0:02:37]}  Bg7 {[%clk 0:02:53]} 5. c3 {[%clk 0:02:38]}  Nf6 {[%clk 0:02:51]} 6. Ng3 {[%clk 0:02:36]}  c5 {[%clk 0:02:48]} 7. Nf3 {[%clk 0:02:34]}  cxd4 {[%clk 0:02:45]} 8. Qxd4 {[%clk 0:02:33]}  O-O {[%clk 0:02:36]} 9. Qxd8 {[%clk 0:02:29]}  Rxd8 {[%clk 0:02:36]} 10. Bc4 {[%clk 0:02:28]}  Nc6 {[%clk 0:02:30]} 11. O-O {[%clk 0:02:25]}  Bg4 {[%clk 0:02:18]} 12. Ng5 {[%clk 0:02:24]}  e6 {[%clk 0:02:12]} 13. h3 {[%clk 0:02:10]}  Bf5 {[%clk 0:02:08]} 14. Nxf5 {[%clk 0:02:08]}  gxf5 {[%clk 0:02:08]} 15. Be3 {[%clk 0:02:01]}  Nd5 {[%clk 0:01:57]} 16. Rad1 {[%clk 0:01:45]}  Nxe3 {[%clk 0:01:53]} 17. fxe3 {[%clk 0:01:46]}  Ne5 {[%clk 0:01:39]} 18. Bb3 {[%clk 0:01:42]}  Bf8 {[%clk 0:01:25]} 19. e4 {[%clk 0:01:20]}  Bc5+ {[%clk 0:01:20]} 20. Kh1 {[%clk 0:01:17]}  Nd3 {[%clk 0:01:17]} 21. exf5 {[%clk 0:00:48]}  Nf2+ {[%clk 0:01:15]} 22. Rxf2 {[%clk 0:00:48]}  Rxd1+ {[%clk 0:01:10]} 23. Bxd1 {[%clk 0:00:49]}  Bxf2 {[%clk 0:01:10]} 24. fxe6 {[%clk 0:00:46]}  fxe6 {[%clk 0:01:06]} 25. Nxe6 {[%clk 0:00:47]}  Re8 {[%clk 0:00:58]} 26. Bb3 {[%clk 0:00:46]}  Kh8 {[%clk 0:00:56]} 27. g4 {[%clk 0:00:45]}  h6 {[%clk 0:00:53]} 28. Kg2 {[%clk 0:00:46]}  Be3 {[%clk 0:00:50]} 29. Bd5 {[%clk 0:00:45]}  Bc1 {[%clk 0:00:47]} 30. b3 {[%clk 0:00:44]}  Re7 {[%clk 0:00:45]} 31. c4 {[%clk 0:00:41]}  b6 {[%clk 0:00:44]} 32. Kf3 {[%clk 0:00:40]}  Bb2 {[%clk 0:00:38]} 33. h4 {[%clk 0:00:38]}  Bf6 {[%clk 0:00:34]} 34. g5 {[%clk 0:00:38]}  hxg5 {[%clk 0:00:33]} 35. hxg5 {[%clk 0:00:38]}  Bc3 {[%clk 0:00:30]} 36. Ke4 {[%clk 0:00:38]}  Rh7 {[%clk 0:00:23]} 37. g6 {[%clk 0:00:36]}  Rh2 {[%clk 0:00:20]} 38. Kf5 {[%clk 0:00:31]}  Rf2+ {[%clk 0:00:16]} 39. Kg4 {[%clk 0:00:23]}  Rxa2 {[%clk 0:00:15]} 40. Nd8 {[%clk 0:00:19]}  Kg7 {[%clk 0:00:13]} 41. Bf7 {[%clk 0:00:17]}  Bf6 {[%clk 0:00:12]} 42. Ne6+ {[%clk 0:00:18]}  Kh6 {[%clk 0:00:11]} 43. Kf5 {[%clk 0:00:18]}  Rf2+ {[%clk 0:00:10]} 44. Ke4 {[%clk 0:00:17]}  Rb2 {[%clk 0:00:09]} 45. Kf5 {[%clk 0:00:13]}  Bh8 {[%clk 0:00:09]} 46. c5 {[%clk 0:00:10]}  bxc5 {[%clk 0:00:06]} 47. Nxc5 {[%clk 0:00:11]}  Rf2+ {[%clk 0:00:06]} 48. Ke4 {[%clk 0:00:10]}  Re2+ {[%clk 0:00:06]} 49. Kd5 {[%clk 0:00:10]}  Rd2+ {[%clk 0:00:05]} 50. Kc6 {[%clk 0:00:10]}  Be5 {[%clk 0:00:04]} 51. Nd7 {[%clk 0:00:08]}  Rc2+ {[%clk 0:00:03]} 52. Kb5 {[%clk 0:00:06]}  Bd4 {[%clk 0:00:02]} 53. b4 {[%clk 0:00:04]}  Kg7 {[%clk 0:00:02]} 54. Nc5 {[%clk 0:00:04]}  Bxc5 {[%clk 0:00:01]} 55. bxc5 {[%clk 0:00:04]}  Re2 {[%clk 0:00:01]} 56. c6 {[%clk 0:00:03]}  Rc2 {[%clk 0:00:01]} 57. Bc4 {[%clk 0:00:01]} 1-0


[Site "https://www.chess.com"]

[Event "Titled Tuesday Blitz February 28 Late 2023"]
[White "Sailer, Mike"]
[Black "Figorito, Nick"]
[WhiteFideId "2012901"]
[BlackFideId "30923689"]
[WhiteElo "2109"]
[BlackElo "2372"]
[Result "1/2-1/2"]
[Round "07"]
[TimeControl "180+2"]
[Date "2023.02.28"]
[WhiteClock "0:00:07"]
[BlackClock "0:00:28"]

1. d4 {[%clk 0:02:58]}  Nf6 {[%clk 0:02:59]} 2. Bg5 {[%clk 0:02:51]}  d5 {[%clk 0:02:58]} 3. Bxf6 {[%clk 0:02:47]}  exf6 {[%clk 0:02:59]} 4. e3 {[%clk 0:02:46]}  Bd6 {[%clk 0:03:00]} 5. Nf3 {[%clk 0:02:47]}  O-O {[%clk 0:03:00]} 6. c4 {[%clk 0:02:47]}  dxc4 {[%clk 0:02:57]} 7. Bxc4 {[%clk 0:02:47]}  c6 {[%clk 0:02:58]} 8. O-O {[%clk 0:02:47]}  Nd7 {[%clk 0:02:50]} 9. Nc3 {[%clk 0:02:48]}  Nb6 {[%clk 0:02:51]} 10. Bd3 {[%clk 0:02:44]}  f5 {[%clk 0:02:49]} 11. a3 {[%clk 0:02:34]}  Re8 {[%clk 0:02:47]} 12. b4 {[%clk 0:02:32]}  g6 {[%clk 0:02:42]} 13. g3 {[%clk 0:02:08]}  Be6 {[%clk 0:02:42]} 14. Nd2 {[%clk 0:02:07]}  Nd5 {[%clk 0:02:42]} 15. Nxd5 {[%clk 0:02:07]}  Bxd5 {[%clk 0:02:43]} 16. Bc4 {[%clk 0:02:03]}  Bc7 {[%clk 0:02:41]} 17. Bxd5 {[%clk 0:02:04]}  Qxd5 {[%clk 0:02:42]} 18. Qb3 {[%clk 0:02:02]}  Qxb3 {[%clk 0:02:38]} 19. Nxb3 {[%clk 0:02:02]}  Bd6 {[%clk 0:02:39]} 20. Nc5 {[%clk 0:02:02]}  Bxc5 {[%clk 0:02:39]} 21. bxc5 {[%clk 0:02:02]}  b5 {[%clk 0:02:29]} 22. a4 {[%clk 0:01:58]}  a6 {[%clk 0:02:19]} 23. Ra2 {[%clk 0:01:53]}  b4 {[%clk 0:02:04]} 24. a5 {[%clk 0:01:47]}  Rab8 {[%clk 0:02:04]} 25. Rb1 {[%clk 0:01:46]}  Rb5 {[%clk 0:02:03]} 26. Rb3 {[%clk 0:01:45]}  Reb8 {[%clk 0:02:00]} 27. Kf1 {[%clk 0:01:44]}  Kf8 {[%clk 0:02:00]} 28. Ke2 {[%clk 0:01:45]}  Ke7 {[%clk 0:02:01]} 29. Kd3 {[%clk 0:01:46]}  Ke6 {[%clk 0:01:58]} 30. Kc4 {[%clk 0:01:46]}  g5 {[%clk 0:01:55]} 31. Ra4 {[%clk 0:01:46]}  h5 {[%clk 0:01:39]} 32. f3 {[%clk 0:01:27]}  h4 {[%clk 0:01:34]} 33. e4 {[%clk 0:01:15]}  hxg3 {[%clk 0:01:27]} 34. hxg3 {[%clk 0:01:15]}  g4 {[%clk 0:01:23]} 35. d5+ {[%clk 0:01:15]}  Kd7 {[%clk 0:01:09]} 36. dxc6+ {[%clk 0:00:47]}  Kxc6 {[%clk 0:01:09]} 37. fxg4 {[%clk 0:00:43]}  Rxc5+ {[%clk 0:01:05]} 38. Kd4 {[%clk 0:00:44]}  fxe4 {[%clk 0:00:53]} 39. Raxb4 {[%clk 0:00:37]}  Rxb4+ {[%clk 0:00:42]} 40. Rxb4 {[%clk 0:00:38]}  Rxa5 {[%clk 0:00:42]} 41. Kxe4 {[%clk 0:00:36]}  Rb5 {[%clk 0:00:36]} 42. Rc4+ {[%clk 0:00:32]}  Kd6 {[%clk 0:00:32]} 43. Rd4+ {[%clk 0:00:17]}  Ke6 {[%clk 0:00:32]} 44. Rc4 {[%clk 0:00:14]}  a5 {[%clk 0:00:32]} 45. Rc6+ {[%clk 0:00:14]}  Kd7 {[%clk 0:00:29]} 46. Ra6 {[%clk 0:00:14]}  Ke7 {[%clk 0:00:28]} 47. Kf4 {[%clk 0:00:10]}  f6 {[%clk 0:00:26]} 48. Ke4 {[%clk 0:00:09]}  Kf7 {[%clk 0:00:26]} 49. Kf4 {[%clk 0:00:08]}  Kg6 {[%clk 0:00:26]} 50. Ra8 {[%clk 0:00:07]}  Rb4+ {[%clk 0:00:26]} 51. Kf3 {[%clk 0:00:08]}  a4 {[%clk 0:00:26]} 52. Rg8+ {[%clk 0:00:08]}  Kf7 {[%clk 0:00:26]} 53. Ra8 {[%clk 0:00:08]}  Rb3+ {[%clk 0:00:27]} 54. Kf4 {[%clk 0:00:04]}  a3 {[%clk 0:00:27]} 55. Kf5 {[%clk 0:00:04]}  Rb5+ {[%clk 0:00:27]} 56. Kf4 {[%clk 0:00:04]}  Rb4+ {[%clk 0:00:28]} 57. Kf5 {[%clk 0:00:04]}  Rb3 {[%clk 0:00:26]} 58. Ra7+ {[%clk 0:00:05]}  Ke8 {[%clk 0:00:26]} 59. Ke6 {[%clk 0:00:03]}  Re3+ {[%clk 0:00:26]} 60. Kxf6 {[%clk 0:00:03]}  Rxg3 {[%clk 0:00:26]} 61. g5 {[%clk 0:00:04]}  Kd8 {[%clk 0:00:26]} 62. g6 {[%clk 0:00:04]}  Rf3+ {[%clk 0:00:25]} 63. Ke6 {[%clk 0:00:05]}  Re3+ {[%clk 0:00:26]} 64. Kd6 {[%clk 0:00:05]}  Rd3+ {[%clk 0:00:27]} 65. Ke6 {[%clk 0:00:05]}  Re3+ {[%clk 0:00:27]} 66. Kf6 {[%clk 0:00:06]}  Rf3+ {[%clk 0:00:27]} 67. Ke6 {[%clk 0:00:07]}  Re3+ {[%clk 0:00:28]} 1/2-1/2


[Site "https://www.chess.com"]

[Event "Titled Tuesday Blitz February 28 Late 2023"]
[White "Matsuura, Frederico"]
[Black "Rangel, Daniel"]
[WhiteFideId "2107848"]
[BlackFideId "2124475"]
[WhiteElo "2302"]
[BlackElo "2256"]
[Result "1-0"]
[Round "07"]
[TimeControl "180+2"]
[Date "2023.02.28"]
[WhiteClock "0:00:13"]
[BlackClock "0:00:01"]

1. d4 {[%clk 0:03:00]}  Nf6 {[%clk 0:02:59]} 2. c4 {[%clk 0:03:00]}  e6 {[%clk 0:02:59]} 3. Nf3 {[%clk 0:03:00]}  d5 {[%clk 0:02:59]} 4. Nc3 {[%clk 0:02:59]}  Be7 {[%clk 0:02:57]} 5. Bg5 {[%clk 0:02:59]}  c6 {[%clk 0:02:52]} 6. cxd5 {[%clk 0:02:57]}  exd5 {[%clk 0:02:48]} 7. Qc2 {[%clk 0:02:56]}  O-O {[%clk 0:02:47]} 8. e3 {[%clk 0:02:56]}  Nbd7 {[%clk 0:02:45]} 9. Bd3 {[%clk 0:02:56]}  Re8 {[%clk 0:02:46]} 10. O-O {[%clk 0:02:55]}  Nf8 {[%clk 0:02:46]} 11. Rab1 {[%clk 0:02:52]}  a5 {[%clk 0:02:27]} 12. h3 {[%clk 0:02:42]}  Ne4 {[%clk 0:02:21]} 13. Bxe7 {[%clk 0:02:41]}  Qxe7 {[%clk 0:02:22]} 14. Bxe4 {[%clk 0:02:33]}  dxe4 {[%clk 0:02:20]} 15. Nd2 {[%clk 0:02:33]}  Bf5 {[%clk 0:01:59]} 16. Nc4 {[%clk 0:02:31]}  Ng6 {[%clk 0:01:56]} 17. a3 {[%clk 0:02:26]}  Qg5 {[%clk 0:01:53]} 18. Kh2 {[%clk 0:02:24]}  Nh4 {[%clk 0:01:51]} 19. Rg1 {[%clk 0:02:19]}  Re6 {[%clk 0:01:45]} 20. Ne5 {[%clk 0:02:14]}  Rh6 {[%clk 0:01:29]} 21. Nxe4 {[%clk 0:02:01]}  Qh5 {[%clk 0:01:07]} 22. Rh1 {[%clk 0:00:36]}  Re8 {[%clk 0:00:26]} 23. Kg1 {[%clk 0:00:31]}  Rxe5 {[%clk 0:00:21]} 24. dxe5 {[%clk 0:00:28]}  Qg6 {[%clk 0:00:21]} 25. Rh2 {[%clk 0:00:17]}  Nf3+ {[%clk 0:00:20]} 26. Kh1 {[%clk 0:00:17]}  Bxe4 {[%clk 0:00:20]} 27. Qd1 {[%clk 0:00:15]}  Bd5 {[%clk 0:00:10]} 28. gxf3 {[%clk 0:00:16]}  Qe6 {[%clk 0:00:06]} 29. e4 {[%clk 0:00:15]}  Qxe5 {[%clk 0:00:03]} 30. exd5 {[%clk 0:00:15]}  cxd5 {[%clk 0:00:04]} 31. Qe1 {[%clk 0:00:15]}  Qb8 {[%clk 0:00:03]} 32. Rc1 {[%clk 0:00:15]}  Rd6 {[%clk 0:00:03]} 33. Qe7 {[%clk 0:00:14]}  Rd8 {[%clk 0:00:04]} 34. Rc7 {[%clk 0:00:13]}  Rf8 {[%clk 0:00:05]} 35. Rg2 {[%clk 0:00:13]}  g6 {[%clk 0:00:04]} 36. h4 {[%clk 0:00:13]}  Qa7 {[%clk 0:00:05]} 37. h5 {[%clk 0:00:13]}  Qd4 {[%clk 0:00:05]} 38. h6 {[%clk 0:00:13]}  Qd2 {[%clk 0:00:02]} 39. Rh2 {[%clk 0:00:13]}  Qf4 {[%clk 0:00:02]} 40. Kg2 {[%clk 0:00:13]}  Qg5+ {[%clk 0:00:01]} 41. Qxg5 {[%clk 0:00:13]} 1-0


[Site "https://www.chess.com"]

[Event "Titled Tuesday Blitz February 28 Late 2023"]
[White "Comas Fabrego, Lluis"]
[Black "Vaglio Munoz, Jaime"]
[WhiteFideId "2200325"]
[BlackFideId "6500145"]
[WhiteElo "2523"]
[BlackElo "2199"]
[Result "0-1"]
[Round "07"]
[TimeControl "180+2"]
[Date "2023.02.28"]
[WhiteClock "0:00:01"]
[BlackClock "0:01:16"]

1. Nf3 {[%clk 0:02:51]}  c5 {[%clk 0:02:57]} 2. c4 {[%clk 0:02:48]}  Nc6 {[%clk 0:02:56]} 3. Nc3 {[%clk 0:02:46]}  g6 {[%clk 0:02:56]} 4. e3 {[%clk 0:02:40]}  Bg7 {[%clk 0:02:55]} 5. d4 {[%clk 0:02:40]}  cxd4 {[%clk 0:02:48]} 6. exd4 {[%clk 0:02:39]}  d6 {[%clk 0:02:48]} 7. Be2 {[%clk 0:02:39]}  Nh6 {[%clk 0:02:46]} 8. d5 {[%clk 0:02:29]}  Nb8 {[%clk 0:02:43]} 9. h3 {[%clk 0:02:11]}  Nf5 {[%clk 0:02:33]} 10. g4 {[%clk 0:02:10]}  Nh6 {[%clk 0:02:32]} 11. Be3 {[%clk 0:02:00]}  f5 {[%clk 0:02:25]} 12. g5 {[%clk 0:01:55]}  Nf7 {[%clk 0:02:24]} 13. Bd4 {[%clk 0:01:54]}  Ne5 {[%clk 0:02:22]} 14. Nxe5 {[%clk 0:01:34]}  dxe5 {[%clk 0:02:22]} 15. Bc5 {[%clk 0:01:31]}  b6 {[%clk 0:02:21]} 16. Ba3 {[%clk 0:01:28]}  Bb7 {[%clk 0:02:16]} 17. h4 {[%clk 0:01:23]}  e6 {[%clk 0:02:13]} 18. Qd2 {[%clk 0:01:14]}  Na6 {[%clk 0:02:06]} 19. O-O-O {[%clk 0:01:13]}  Nc5 {[%clk 0:02:06]} 20. h5 {[%clk 0:01:04]}  exd5 {[%clk 0:01:54]} 21. Nxd5 {[%clk 0:01:03]}  Bxd5 {[%clk 0:01:53]} 22. Qxd5 {[%clk 0:01:02]}  Qxd5 {[%clk 0:01:52]} 23. Rxd5 {[%clk 0:01:02]}  Rc8 {[%clk 0:01:51]} 24. h6 {[%clk 0:00:56]}  Bf8 {[%clk 0:01:48]} 25. Rxe5+ {[%clk 0:00:56]}  Kf7 {[%clk 0:01:47]} 26. Kc2 {[%clk 0:00:46]}  Be7 {[%clk 0:01:46]} 27. Rg1 {[%clk 0:00:38]}  Bd6 {[%clk 0:01:45]} 28. Rd5 {[%clk 0:00:37]}  Bf4 {[%clk 0:01:41]} 29. Bf3 {[%clk 0:00:32]}  Rhe8 {[%clk 0:01:35]} 30. Rgd1 {[%clk 0:00:30]}  a5 {[%clk 0:01:31]} 31. b3 {[%clk 0:00:24]}  Bxg5 {[%clk 0:01:30]} 32. Bxc5 {[%clk 0:00:21]}  bxc5 {[%clk 0:01:24]} 33. Rd7+ {[%clk 0:00:21]}  Re7 {[%clk 0:01:24]} 34. Rxe7+ {[%clk 0:00:20]}  Kxe7 {[%clk 0:01:23]} 35. Bb7 {[%clk 0:00:06]}  Rc7 {[%clk 0:01:22]} 36. Bd5 {[%clk 0:00:04]}  Bxh6 {[%clk 0:01:21]} 37. Bg8 {[%clk 0:00:04]}  Kf6 {[%clk 0:01:20]} 38. Rd6+ {[%clk 0:00:04]}  Kg7 {[%clk 0:01:19]} 39. Bd5 {[%clk 0:00:04]}  Bf4 {[%clk 0:01:18]} 40. Ra6 {[%clk 0:00:03]}  h5 {[%clk 0:01:18]} 41. Rxa5 {[%clk 0:00:03]}  h4 {[%clk 0:01:18]} 42. Ra6 {[%clk 0:00:02]}  h3 {[%clk 0:01:18]} 43. Rc6 {[%clk 0:00:01]}  Re7 {[%clk 0:01:16]} 44. Rxc5 {[%clk 0:00:01]}  Re2+ {[%clk 0:01:16]} 45. Kd3 {[%clk 0:00:01]}  Rxf2 {[%clk 0:01:16]} 46. b4 {[%clk 0:00:02]}  h2 {[%clk 0:01:16]} 47. b5 {[%clk 0:00:02]}  Rd2+ {[%clk 0:01:16]} 48. Kc3 {[%clk 0:00:01]}  Rxd5 {[%clk 0:01:16]} 0-1


[Site "https://www.chess.com"]

[Event "Titled Tuesday Blitz February 28 Late 2023"]
[White "Marcolino, Daniel Mattos"]
[Black "Abdyzhaparov, Aidar"]
[WhiteFideId "2106841"]
[BlackFideId "13800361"]
[WhiteElo "2124"]
[BlackElo "2002"]
[Result "0-1"]
[Round "07"]
[TimeControl "180+2"]
[Date "2023.02.28"]
[WhiteClock "0:00:19"]
[BlackClock "0:00:44"]

1. d4 {[%clk 0:03:00]}  d6 {[%clk 0:03:00]} 2. Nf3 {[%clk 0:03:00]}  Nf6 {[%clk 0:03:01]} 3. g3 {[%clk 0:03:00]}  Nbd7 {[%clk 0:03:02]} 4. Bg2 {[%clk 0:03:01]}  e5 {[%clk 0:03:03]} 5. O-O {[%clk 0:02:58]}  Be7 {[%clk 0:03:03]} 6. c4 {[%clk 0:02:58]}  O-O {[%clk 0:03:03]} 7. Nc3 {[%clk 0:02:58]}  Re8 {[%clk 0:03:03]} 8. e4 {[%clk 0:02:58]}  exd4 {[%clk 0:03:02]} 9. Nxd4 {[%clk 0:02:58]}  Bf8 {[%clk 0:03:02]} 10. h3 {[%clk 0:02:52]}  Nc5 {[%clk 0:03:02]} 11. Qc2 {[%clk 0:02:46]}  a5 {[%clk 0:03:01]} 12. Be3 {[%clk 0:02:45]}  c6 {[%clk 0:03:00]} 13. b3 {[%clk 0:02:44]}  Qe7 {[%clk 0:02:57]} 14. Rfe1 {[%clk 0:01:57]}  Ncxe4 {[%clk 0:02:51]} 15. Nxe4 {[%clk 0:01:57]}  Nxe4 {[%clk 0:02:51]} 16. Rad1 {[%clk 0:01:57]}  d5 {[%clk 0:02:48]} 17. cxd5 {[%clk 0:01:55]}  cxd5 {[%clk 0:02:48]} 18. Bf4 {[%clk 0:01:40]}  Bf5 {[%clk 0:02:13]} 19. Nxf5 {[%clk 0:01:39]}  Qc5 {[%clk 0:02:07]} 20. Qxc5 {[%clk 0:01:38]}  Bxc5 {[%clk 0:02:08]} 21. Be3 {[%clk 0:01:30]}  Bb4 {[%clk 0:02:07]} 22. Rf1 {[%clk 0:01:26]}  Nc3 {[%clk 0:02:03]} 23. Rd3 {[%clk 0:01:16]}  g6 {[%clk 0:02:01]} 24. Nd4 {[%clk 0:01:14]}  Nxa2 {[%clk 0:01:51]} 25. Bxd5 {[%clk 0:01:09]}  Rad8 {[%clk 0:01:51]} 26. Bc4 {[%clk 0:01:09]}  Nc3 {[%clk 0:01:49]} 27. Kg2 {[%clk 0:01:00]}  Rb8 {[%clk 0:01:33]} 28. Nb5 {[%clk 0:01:00]}  Ne4 {[%clk 0:01:29]} 29. Rd7 {[%clk 0:00:53]}  Rf8 {[%clk 0:01:19]} 30. Rfd1 {[%clk 0:00:53]}  Nf6 {[%clk 0:01:18]} 31. Rc7 {[%clk 0:00:48]}  a4 {[%clk 0:01:16]} 32. Bh6 {[%clk 0:00:43]}  Ba5 {[%clk 0:01:13]} 33. Bxf8 {[%clk 0:00:35]}  Bxc7 {[%clk 0:01:13]} 34. Bd6 {[%clk 0:00:29]}  Bxd6 {[%clk 0:01:10]} 35. Nxd6 {[%clk 0:00:29]}  axb3 {[%clk 0:00:59]} 36. Bxb3 {[%clk 0:00:28]}  Rd8 {[%clk 0:00:57]} 37. Nxf7 {[%clk 0:00:27]}  Rxd1 {[%clk 0:00:56]} 38. Bxd1 {[%clk 0:00:26]}  Kxf7 {[%clk 0:00:56]} 39. Kf3 {[%clk 0:00:26]}  Ke6 {[%clk 0:00:55]} 40. Ke3 {[%clk 0:00:27]}  b6 {[%clk 0:00:48]} 41. Kd3 {[%clk 0:00:27]}  Kd5 {[%clk 0:00:47]} 42. Bf3+ {[%clk 0:00:25]}  Kc5 {[%clk 0:00:46]} 43. Kc3 {[%clk 0:00:24]}  Nd7 {[%clk 0:00:46]} 44. h4 {[%clk 0:00:23]}  Ne5 {[%clk 0:00:47]} 45. Be4 {[%clk 0:00:20]}  b5 {[%clk 0:00:47]} 46. f4 {[%clk 0:00:19]}  b4+ {[%clk 0:00:48]} 47. Kb3 {[%clk 0:00:18]}  Nc4 {[%clk 0:00:44]} 48. g4 {[%clk 0:00:17]}  Nd2+ {[%clk 0:00:44]} 49. Kc2 {[%clk 0:00:18]}  Nxe4 {[%clk 0:00:44]} 50. f5 {[%clk 0:00:18]}  gxf5 {[%clk 0:00:44]} 51. gxf5 {[%clk 0:00:19]}  Kc4 {[%clk 0:00:44]} 0-1


[Site "https://www.chess.com"]

[Event "Titled Tuesday Blitz February 28 Late 2023"]
[White "mohsengabr2002"]
[Black "Chemin, Justo Reinaldo"]
[BlackFideId "2101580"]
[WhiteElo "2333"]
[BlackElo "1940"]
[Result "0-1"]
[Round "07"]
[TimeControl "180+2"]
[Date "2023.02.28"]
[WhiteClock "0:00:19"]
[BlackClock "0:00:07"]

1. g3 {[%clk 0:03:00]}  d5 {[%clk 0:02:59]} 2. Bg2 {[%clk 0:03:00]}  c6 {[%clk 0:02:59]} 3. c4 {[%clk 0:03:00]}  Nf6 {[%clk 0:02:58]} 4. b3 {[%clk 0:03:00]}  g6 {[%clk 0:02:57]} 5. Bb2 {[%clk 0:03:00]}  Bg7 {[%clk 0:02:57]} 6. d3 {[%clk 0:03:00]}  O-O {[%clk 0:02:57]} 7. Nf3 {[%clk 0:02:59]}  Nbd7 {[%clk 0:02:49]} 8. O-O {[%clk 0:02:58]}  Re8 {[%clk 0:02:50]} 9. Ne5 {[%clk 0:02:43]}  Qc7 {[%clk 0:02:41]} 10. Nxd7 {[%clk 0:02:40]}  Bxd7 {[%clk 0:02:33]} 11. cxd5 {[%clk 0:02:35]}  Nxd5 {[%clk 0:02:31]} 12. Bxg7 {[%clk 0:02:35]}  Kxg7 {[%clk 0:02:31]} 13. Qc2 {[%clk 0:02:29]}  Qe5 {[%clk 0:02:26]} 14. Na3 {[%clk 0:02:23]}  b5 {[%clk 0:02:16]} 15. Bxd5 {[%clk 0:02:18]}  Qxd5 {[%clk 0:02:13]} 16. Qb2+ {[%clk 0:02:18]}  f6 {[%clk 0:02:11]} 17. Rfd1 {[%clk 0:02:16]}  h5 {[%clk 0:02:04]} 18. e4 {[%clk 0:02:15]}  Qg5 {[%clk 0:01:58]} 19. Qd2 {[%clk 0:02:09]}  Qg4 {[%clk 0:01:48]} 20. Nc2 {[%clk 0:02:06]}  h4 {[%clk 0:01:45]} 21. Re1 {[%clk 0:01:51]}  Rh8 {[%clk 0:01:37]} 22. Ne3 {[%clk 0:01:50]}  Qh3 {[%clk 0:01:30]} 23. Nf1 {[%clk 0:01:38]}  hxg3 {[%clk 0:01:27]} 24. fxg3 {[%clk 0:01:37]}  Rh5 {[%clk 0:01:18]} 25. Qg2 {[%clk 0:01:37]}  Qe6 {[%clk 0:01:10]} 26. Rac1 {[%clk 0:01:24]}  Rah8 {[%clk 0:01:09]} 27. Re2 {[%clk 0:01:18]}  Qd6 {[%clk 0:01:07]} 28. Qf3 {[%clk 0:01:07]}  Rg5 {[%clk 0:00:45]} 29. Qe3 {[%clk 0:01:06]}  Bg4 {[%clk 0:00:41]} 30. Rf2 {[%clk 0:01:06]}  Rgh5 {[%clk 0:00:36]} 31. d4 {[%clk 0:00:59]}  Bd7 {[%clk 0:00:35]} 32. Re1 {[%clk 0:00:56]}  e5 {[%clk 0:00:32]} 33. Rd1 {[%clk 0:00:55]}  Bg4 {[%clk 0:00:30]} 34. Rdd2 {[%clk 0:00:55]}  exd4 {[%clk 0:00:29]} 35. Qxd4 {[%clk 0:00:54]}  Qxd4 {[%clk 0:00:29]} 36. Rxd4 {[%clk 0:00:54]}  Rf8 {[%clk 0:00:24]} 37. Rd6 {[%clk 0:00:51]}  Rc5 {[%clk 0:00:22]} 38. Rfd2 {[%clk 0:00:47]}  Rc1 {[%clk 0:00:19]} 39. Kf2 {[%clk 0:00:47]}  f5 {[%clk 0:00:16]} 40. e5 {[%clk 0:00:46]}  f4 {[%clk 0:00:15]} 41. gxf4 {[%clk 0:00:19]}  Rxf4+ {[%clk 0:00:14]} 42. Kg3 {[%clk 0:00:19]}  Rcxf1 {[%clk 0:00:12]} 43. e6 {[%clk 0:00:19]}  R1f3+ {[%clk 0:00:07]} 44. Kg2 {[%clk 0:00:19]}  Bh3+ {[%clk 0:00:07]} 45. Kg1 {[%clk 0:00:19]}  Rf1# {[%clk 0:00:07]} 0-1


[Site "https://www.chess.com"]

[Event "Titled Tuesday Blitz February 28 Late 2023"]
[White "Guimaraes, Wagner Peixoto"]
[Black "Pino Perez, Lazaro"]
[WhiteFideId "2100940"]
[BlackFideId "3517055"]
[WhiteElo "2185"]
[BlackElo "2170"]
[Result "0-1"]
[Round "07"]
[TimeControl "180+2"]
[Date "2023.02.28"]
[WhiteClock "0:00:04"]
[BlackClock "0:00:21"]

1. e4 {[%clk 0:02:57]}  c5 {[%clk 0:02:59]} 2. Nf3 {[%clk 0:02:56]}  g6 {[%clk 0:02:59]} 3. d4 {[%clk 0:02:56]}  cxd4 {[%clk 0:03:00]} 4. Nxd4 {[%clk 0:02:54]}  Nc6 {[%clk 0:02:59]} 5. Nc3 {[%clk 0:02:54]}  Bg7 {[%clk 0:02:59]} 6. Be3 {[%clk 0:02:53]}  Nf6 {[%clk 0:02:59]} 7. Bc4 {[%clk 0:02:53]}  O-O {[%clk 0:03:00]} 8. Bb3 {[%clk 0:02:53]}  Re8 {[%clk 0:02:40]} 9. O-O {[%clk 0:02:42]}  d6 {[%clk 0:02:25]} 10. h3 {[%clk 0:02:42]}  Na5 {[%clk 0:02:20]} 11. Qe2 {[%clk 0:02:00]}  b6 {[%clk 0:02:15]} 12. Rad1 {[%clk 0:01:44]}  Bb7 {[%clk 0:02:06]} 13. e5 {[%clk 0:01:44]}  dxe5 {[%clk 0:01:51]} 14. Ne6 {[%clk 0:01:28]}  Qc8 {[%clk 0:01:44]} 15. Nxg7 {[%clk 0:01:27]}  Kxg7 {[%clk 0:01:45]} 16. Bg5 {[%clk 0:01:17]}  Nxb3 {[%clk 0:01:35]} 17. axb3 {[%clk 0:01:14]}  Ba6 {[%clk 0:01:35]} 18. Qxe5 {[%clk 0:01:10]}  Bxf1 {[%clk 0:01:25]} 19. Nd5 {[%clk 0:00:49]}  Qf5 {[%clk 0:01:16]} 20. Qxf5 {[%clk 0:00:43]}  gxf5 {[%clk 0:01:15]} 21. Bxf6+ {[%clk 0:00:39]}  exf6 {[%clk 0:01:16]} 22. Kxf1 {[%clk 0:00:38]}  Rad8 {[%clk 0:01:12]} 23. c4 {[%clk 0:00:37]}  a5 {[%clk 0:01:05]} 24. Rd3 {[%clk 0:00:35]}  b5 {[%clk 0:00:47]} 25. Rg3+ {[%clk 0:00:22]}  Kf8 {[%clk 0:00:47]} 26. Rf3 {[%clk 0:00:17]}  Re4 {[%clk 0:00:41]} 27. g4 {[%clk 0:00:14]}  bxc4 {[%clk 0:00:40]} 28. Nxf6 {[%clk 0:00:10]}  fxg4 {[%clk 0:00:34]} 29. hxg4 {[%clk 0:00:10]}  Red4 {[%clk 0:00:35]} 30. Nxh7+ {[%clk 0:00:09]}  Kg7 {[%clk 0:00:31]} 31. Ng5 {[%clk 0:00:08]}  cxb3 {[%clk 0:00:26]} 32. Rxb3 {[%clk 0:00:05]}  R8d5 {[%clk 0:00:21]} 33. Nf3 {[%clk 0:00:04]}  Rd3 {[%clk 0:00:21]} 0-1


[Site "https://www.chess.com"]